bitfinex/quotes_ETHUSD_20220220
["timestamp","ask_amount","ask_price","bid_price","bid_amount"]
[1645394166520,0.00699199,2596.2,2595.7,4.4633347]
[1645394166721,0.71763101,2596.3,2596.0,0.88839659]
[1645394166918,0.00699199,2596.2,2596.0,0.88839659]
[1645394167120,0.71763101,2596.3,2596.0,0.88839659]
[1645394167321,0.00699199,2596.6,2596.0,0.88839659]
[1645394167322,0.724623,2596.4,2596.0,0.88839659]
[1645394167524,0.71763101,2596.4,2596.0,0.88839659]
[1645394167725,0.71763101,2596.4,2596.0,1.9266399]
[1645394167926,0.71763101,2596.2,2595.7,1.0]
[1645394168321,0.71763101,2596.2,2595.6,1.1925]
[1645394168923,0.71763101,2596.1,2595.6,0.1925]
[1645394169145,0.724623,2596.1,2595.6,0.1925]
[1645394169446,0.724623,2596.1,2595.6,2.1195024]
[1645394169646,0.724623,2596.1,2595.7,0.1925]
[1645394169849,0.724623,2596.1,2595.7,1.15606]
[1645394169850,0.71763101,2596.1,2595.7,1.15606]
[1645394170246,0.71763101,2596.1,2595.8,1.92687]
[1645394170448,0.00699199,2596.2,2595.8,1.92687]
[1645394170449,0.00699199,2596.2,2595.9,5.42677]
[1645394170646,0.71763101,2596.4,2595.9,3.8534866]
[1645394170848,0.71763101,2596.3,2595.9,7.3534866]
[1645394171051,0.71763101,2596.4,2596.0,0.87038132]
[1645394171349,0.724623,2596.4,2596.0,1.83377132]
[1645394171947,0.724623,2596.4,2596.1,3.5]
[1645394172147,0.71763101,2596.5,2596.0,4.72364962]
[1645394172350,0.71763101,2596.5,2596.0,16.49364962]
[1645394172351,0.71763101,2596.4,2596.0,16.49364962]
[1645394172553,0.71763101,2596.4,2596.0,16.68614962]
[1645394173705,0.71763101,2596.4,2596.1,0.91326]
[1645394174112,0.71763101,2596.3,2596.0,2.8898783]
[1645394176552,0.71763101,2596.2,2596.0,2.8898783]
[1645394176861,0.00699199,2596.4,2596.2,11.77]
[1645394177057,0.00699199,2596.6,2596.3,14.25112]
[1645394177254,1.92017866,2597.5,2596.3,14.25112]
[1645394177255,0.95684135,2597.2,2596.5,10.16915933]
[1645394177451,0.95684135,2597.3,2596.7,1.92595]
[1645394177660,0.95684135,2597.2,2596.7,1.92595]
[1645394178056,1.92045827,2597.3,2596.7,1.92595]
[1645394178461,1.92045827,2597.3,2596.8,0.96301]
[1645394178852,0.95684135,2597.2,2596.8,0.96301]
[1645394179054,1.92045827,2597.3,2596.8,0.96301]
[1645394179753,1.92045827,2597.3,2596.8,2.8891]
[1645394179754,1.82045827,2597.3,2596.8,2.8891]
[1645394179958,1.82045827,2597.3,2596.9,0.9630931]
[1645394180403,1.82045827,2597.3,2596.9,2.8891631]
[1645394180404,0.95684135,2597.2,2596.9,2.8891631]
[1645394181102,0.95684135,2597.4,2596.9,2.8891631]
[1645394181303,0.95684135,2597.5,2597.0,0.96304]
[1645394181502,0.95684135,2597.4,2597.0,0.96304]
[1645394181704,1.15908208,2597.3,2597.0,0.96304]
[1645394181906,0.95684135,2597.1,2596.8,1.926079]
[1645394182105,0.95684135,2597.1,2596.5,2.826]
[1645394182303,0.95684135,2597.0,2596.3,0.56435185]
[1645394182904,0.94733533,2596.8,2596.3,0.56435185]
[1645394185252,1.90417668,2596.8,2596.3,0.56435185]
[1645394185449,0.94733533,2596.8,2596.3,0.56435185]
[1645394186049,1.90417668,2596.8,2596.3,0.56435185]
[1645394186450,0.11668927,2596.7,2596.3,0.56435185]
[1645394186850,0.72239365,2596.5,2596.3,0.56435185]
[1645394187052,0.11668927,2596.4,2596.3,0.56435185]
[1645394187252,0.72239365,2596.6,2596.3,0.56435185]
[1645394187453,0.83908292,2596.5,2596.3,0.56435185]
[1645394187664,0.83908292,2596.4,2596.3,0.56435185]
[1645394187910,0.72239365,2596.4,2596.3,0.56435185]
[1645394188398,0.83908292,2596.4,2596.3,0.56435185]
[1645394188800,0.72239365,2596.4,2596.3,0.56435185]
[1645394189200,0.11668927,2596.4,2596.3,0.56435185]
[1645394189602,0.72242368,2596.4,2596.3,0.56435185]
[1645394190002,1.71647439,2596.4,2596.3,0.56435185]
[1645394190208,1.83316366,2596.4,2596.3,0.56435185]
[1645394191003,1.78316366,2596.4,2596.3,0.56435185]
[1645394191312,1.78316366,2596.4,2595.8,2.61859066]
[1645394191313,18.5,2596.3,2595.8,2.61859066]
[1645394191558,4.902758,2596.2,2595.8,2.61859066]
[1645394191754,0.11668927,2596.1,2595.8,2.61859066]
[1645394192356,0.11668927,2596.1,2595.5,0.2499]
[1645394192561,0.11668927,2596.0,2595.5,0.2499]
[1645394192753,0.86555017,2595.8,2595.5,0.2499]
[1645394192965,0.11668927,2595.7,2595.5,0.2499]
[1645394194460,0.00688016,2596.1,2595.6,1.51762119]
[1645394194661,0.10900063,2596.0,2595.6,1.51762119]
[1645394194857,0.10900063,2595.9,2595.6,1.51762119]
[1645394195057,0.10900063,2595.8,2595.6,1.51762119]
[1645394195311,0.10900063,2595.7,2595.6,1.51762119]
[1645394195507,0.10900063,2595.7,2595.5,0.2499]
[1645394195702,0.10900063,2596.0,2595.5,1.21339]
[1645394195901,0.10900063,2595.9,2595.5,3.3330204]
[1645394196103,0.10900063,2595.8,2595.5,2.3695304]
[1645394196402,0.10900063,2595.7,2595.5,3.1770304]
[1645394196607,0.10900063,2595.6,2595.5,3.1770304]
[1645394197002,0.10900063,2596.1,2595.5,3.1770304]
[1645394197204,0.10900063,2596.0,2595.6,1.51765691]
[1645394197402,0.10900063,2596.0,2595.5,2.2135004]
[1645394197403,0.10900063,2595.9,2595.5,2.00749595]
[1645394197603,0.10900063,2595.8,2595.5,2.00749595]
[1645394197803,0.10900063,2595.7,2595.5,2.00749595]
[1645394198008,1.4139912,2596.2,2595.5,2.00749595]
[1645394198009,0.10900063,2595.6,2595.5,2.00749595]
[1645394198204,0.10900063,2596.1,2595.5,3.52902694]
[1645394198404,0.10900063,2596.1,2595.5,2.00749595]
[1645394199049,0.10900063,2596.1,2595.6,1.52166889]
[1645394199853,0.10900063,2596.1,2595.6,3.44866889]
[1645394200049,0.10900063,2596.1,2595.7,2.48515979]
[1645394200249,0.10900063,2596.1,2595.7,0.9634909]
[1645394208156,0.10900063,2596.1,2595.8,1.52477978]
[1645394210172,0.10900063,2596.1,2595.5,0.2499]
[1645394210173,0.72272283,2596.0,2595.5,0.2499]
[1645394210408,0.83172346,2596.0,2595.5,0.2499]
[1645394210609,0.10900063,2595.9,2595.5,0.2499]
[1645394210806,0.10900063,2595.8,2595.5,0.2499]
[1645394211008,2.56965654,2596.2,2595.5,0.2499]
[1645394211009,0.05900063,2595.7,2595.5,0.2499]
[1645394211307,0.97185612,2595.7,2595.5,0.2499]
[1645394211805,0.72272283,2596.0,2595.5,0.2499]
[1645394212206,0.72272283,2596.1,2595.5,0.2499]
[1645394212809,0.72272283,2596.1,2595.5,1.2134882]
[1645394213208,1.10361593,2595.8,2595.5,1.2134882]
[1645394213411,0.72272283,2596.1,2595.5,1.2134882]
[1645394214553,1.11399315,2596.0,2595.5,1.2134882]
[1645394216150,1.83671598,2596.0,2595.5,1.2134882]
[1645394216551,1.11399315,2596.0,2595.5,1.2134882]
[1645394217550,1.11399315,2596.0,2595.5,1.06503027]
[1645394220016,0.72272283,2596.1,2595.5,1.06503027]
[1645394220218,0.32290339,2596.2,2595.5,2.02856027]
[1645394220420,0.32290339,2596.2,2595.6,0.9635]
[1645394220621,0.27290339,2596.2,2595.6,0.9635]
[1645394221019,0.27290339,2596.2,2595.5,1.06503027]
[1645394221217,0.99562622,2596.2,2595.5,0.2499]
[1645394221417,1.08491883,2595.9,2595.5,0.2499]
[1645394225161,1.80764166,2595.9,2595.5,0.2499]
[1645394226616,0.72272283,2595.8,2595.5,0.2499]
[1645394226821,0.72272283,2596.1,2595.5,0.2499]
[1645394228817,0.90865855,2595.8,2595.5,0.2499]
[1645394231256,0.09502044,2595.7,2595.6,1.53689529]
[1645394231658,0.81774327,2595.7,2595.5,0.2499]
[1645394231858,0.09502044,2595.6,2595.5,0.2499]
[1645394232258,0.09502044,2595.7,2595.5,1.78711129]
[1645394232464,0.09502044,2595.6,2595.5,0.2499]
[1645394232912,0.09502044,2595.6,2595.5,1.78710373]
[1645394233207,0.72272283,2595.8,2595.5,1.78710373]
[1645394233411,1.62733926,2595.8,2595.6,1.53720675]
[1645394233609,0.09502044,2595.7,2595.6,1.53720675]
[1645394235019,0.72272283,2595.9,2595.6,1.53720675]
[1645394235810,0.72272283,2595.8,2595.5,0.2499]
[1645394236011,0.09502044,2595.7,2595.6,1.53711127]
[1645394236408,0.09502044,2595.8,2595.6,1.53711127]
[1645394236955,0.09502044,2595.8,2595.5,0.2499]
[1645394237159,0.81774327,2595.8,2595.5,0.2499]
[1645394237656,0.81774327,2595.8,2595.3,2.77046564]
[1645394237854,0.81774327,2595.8,2595.4,1.54414932]
[1645394238058,0.81774327,2595.7,2595.4,1.54414932]
[1645394238256,0.09502044,2595.6,2595.4,1.54414932]
[1645394238454,0.09502044,2595.5,2595.4,1.54414932]
[1645394241808,0.09502044,2595.5,2595.1,2.61870743]
[1645394241809,0.72272283,2595.5,2595.1,2.61870743]
[1645394242009,0.72272283,2595.5,2595.2,1.54435595]
[1645394242307,0.72272283,2595.5,2595.1,2.61870743]
[1645394242511,0.81774327,2595.4,2595.1,2.61870743]
[1645394242706,0.09502044,2595.3,2595.1,2.61870743]
[1645394243006,0.09502044,2595.2,2594.9,3.1973932]
[1645394243312,0.09502044,2595.1,2595.0,1.54344082]
[1645394245466,0.09502044,2595.1,2595.0,5.04344082]
[1645394245664,1.91932283,2595.8,2595.0,5.04344082]
[1645394245865,0.08644077,2595.7,2595.1,1.54344082]
[1645394246069,0.64857753,2595.9,2595.3,22.5]
[1645394246271,0.44867319,2596.2,2595.6,0.01221951]
[1645394246468,0.04030339,2596.2,2595.8,11.77]
[1645394246665,0.00688005,2596.7,2596.0,11.77]
[1645394246865,0.25,2596.9,2596.1,12.5175]
[1645394246866,0.00688005,2596.8,2596.1,12.5175]
[1645394247065,0.00688005,2596.8,2596.2,0.555]
[1645394247264,0.00688005,2596.8,2596.3,0.1925]
[1645394247469,0.00688005,2597.0,2596.4,2.48122]
[1645394247670,0.96316534,2597.1,2596.7,0.9631005]
[1645394247914,0.00688005,2597.0,2596.4,0.555]
[1645394248213,0.97004539,2597.1,2596.4,0.555]
[1645394248412,0.00688005,2597.1,2596.4,0.555]
[1645394248618,0.00688005,2597.1,2596.4,1.5182]
[1645394249012,0.97004539,2597.1,2596.4,1.5182]
[1645394249616,0.00688005,2597.1,2596.4,1.5182]
[1645394249813,0.00688005,2597.1,2596.5,0.9632089]
[1645394252264,0.00688005,2597.1,2596.5,2.55378191]
[1645394253166,0.00688005,2597.2,2596.5,2.55378191]
[1645394253767,0.00688005,2597.2,2596.7,1.13240064]
[1645394253967,8.34316534,2597.3,2596.6,0.96316]
[1645394253968,0.00688005,2597.3,2596.6,0.96316]
[1645394256105,0.00688005,2597.3,2596.5,3.67116577]
[1645394256705,0.95646729,2597.1,2596.5,3.67116577]
[1645394256906,0.00688005,2597.3,2596.6,0.96316]
[1645394257307,12.38,2598.0,2596.6,0.96316]
[1645394257308,4.58098665,2598.2,2596.8,0.3857]
[1645394257518,0.25,2598.3,2597.8,0.01256561]
[1645394257714,3.23465885,2599.1,2597.8,0.01256561]
[1645394257715,0.03436108,2599.1,2598.2,0.0125452]
[1645394257914,0.03436108,2599.1,2598.4,1.17073024]
[1645394258114,0.03436108,2599.1,2598.8,0.01228939]
[1645394258310,0.03436108,2599.1,2598.6,0.1923]
[1645394258511,0.03436108,2599.1,2598.7,0.7787]
[1645394258710,0.03436108,2599.1,2598.8,0.962359]
[1645394258907,0.03436108,2599.1,2598.8,1.517359]
[1645394259164,0.03436108,2599.1,2598.9,0.97849744]
[1645394259667,0.03436108,2599.1,2599.0,3.44133]
[1645394260365,0.03436108,2599.1,2599.0,0.555]
[1645394260968,0.03436108,2599.1,2599.0,0.505]
[1645394261166,0.03436108,2599.1,2599.0,1.42412392]
[1645394261367,0.25,2599.5,2599.2,0.08507135]
[1645394261571,0.25,2599.5,2599.3,1.517]
[1645394261765,7.38,2600.4,2599.3,1.517]
[1645394262068,7.38,2600.4,2599.5,0.96195]
[1645394262266,0.01418859,2599.9,2599.7,0.94302379]
[1645394263110,7.38,2600.4,2599.7,1.90500379]
[1645394263319,0.00354764,2599.9,2599.7,1.90500379]
[1645394263512,0.00354764,2599.9,2599.7,2.86698379]
[1645394263713,0.00354764,2599.9,2599.7,4.79091379]
[1645394264414,0.00335122,2599.9,2599.7,5.34591379]
[1645394264615,0.00335122,2599.9,2599.7,7.26986219]
[1645394266016,0.00335122,2599.9,2599.8,3.5]
[1645394266673,7.38,2600.4,2599.8,3.5]
[1645394266970,7.38,2600.4,2600.0,0.96188]
[1645394266971,7.394194,2600.4,2600.0,0.96188]
[1645394267270,7.394194,2600.4,2599.9,2.8856364]
[1645394267471,7.394194,2600.4,2599.7,5.34590219]
[1645394267872,7.38,2600.4,2599.9,0.96202]
[1645394268271,0.00354902,2600.2,2599.9,0.96202]
[1645394268774,0.00354902,2600.2,2600.1,0.98776609]
[1645394268979,7.38,2600.4,2600.1,1.54276609]
[1645394269175,10.1795,2601.2,2600.2,0.9617]
[1645394269176,7.38,2600.7,2600.2,0.9617]
[1645394269372,7.38,2600.7,2600.3,0.555]
[1645394269573,7.38,2600.7,2600.1,3.8468313]
[1645394270072,7.38,2600.7,2600.1,5.7704713]
[1645394270320,7.38,2600.7,2600.2,2.88542]
[1645394270519,0.00335678,2600.5,2600.3,1.11830477]
[1645394270718,0.00335678,2600.5,2600.3,3.04186307]
[1645394270924,0.1922,2601.3,2600.3,3.04186307]
[1645394271223,7.8222,2601.4,2600.3,3.04186307]
[1645394271419,7.8222,2601.4,2600.4,0.96177]
[1645394271420,7.5222,2601.4,2600.4,0.96177]
[1645394271618,7.5722,2601.4,2600.4,0.96177]
[1645394271819,0.85525024,2601.3,2600.4,0.96177]
[1645394272219,4.35525024,2601.3,2600.4,0.96177]
[1645394272424,0.86611483,2600.9,2600.1,1.9234013]
[1645394272724,0.86611483,2600.9,2599.7,1.13352733]
[1645394272725,3.5,2600.8,2599.7,1.13352733]
[1645394272922,3.50678566,2600.8,2599.7,0.57852733]
[1645394273125,5.0,2600.7,2599.7,0.57852733]
[1645394273319,0.88728501,2600.2,2599.7,0.57852733]
[1645394274064,0.00678566,2600.6,2599.7,0.57852733]
[1645394275061,0.1923,2601.0,2599.7,0.57852733]
[1645394275062,0.88302728,2600.3,2599.7,0.57852733]
[1645394275263,0.00678566,2600.9,2599.7,0.57852733]
[1645394276161,1.00725816,2600.4,2599.7,0.57852733]
[1645394277817,1.1556825,2600.0,2599.7,0.57852733]
[1645394278019,0.00678566,2600.5,2599.7,0.57852733]
[1645394278218,0.25,2600.7,2599.7,0.57852733]
[1645394278418,0.00678566,2600.6,2599.7,0.57852733]
[1645394279028,0.83972639,2600.4,2599.7,0.57852733]
[1645394279820,0.83972639,2600.4,2599.8,0.9619726]
[1645394280218,0.83972639,2600.4,2599.7,0.57852733]
[1645394280618,1.14058007,2600.0,2599.7,0.57852733]
[1645394280819,0.00678566,2600.6,2599.7,0.57852733]
[1645394281762,0.8508,2600.2,2599.7,0.57852733]
[1645394282168,0.8508,2600.2,2599.3,5.9647253]
[1645394282169,0.8508,2600.2,2599.3,0.1922]
[1645394282365,0.00678566,2600.1,2599.3,0.1922]
[1645394282563,0.00678566,2600.1,2599.2,0.08507135]
[1645394282966,1.11203151,2599.8,2599.2,0.08507135]
[1645394284368,5.0,2599.7,2599.2,0.08507135]
[1645394284766,5.56178566,2599.7,2599.2,1.0832795]
[1645394284969,0.00678566,2599.7,2599.2,1.0832795]
[1645394285167,1.11203151,2599.8,2599.2,1.0832795]
[1645394285415,0.00678566,2599.7,2599.2,1.0832795]
[1645394285616,1.11203151,2599.8,2599.2,1.0832795]
[1645394285815,0.00678566,2599.7,2599.2,1.0832795]
[1645394286015,1.1894,2600.4,2599.2,1.0832795]
[1645394286016,0.00678566,2599.9,2599.2,1.0832795]
[1645394286216,0.00678566,2599.7,2599.2,1.0832795]
[1645394286415,6.1894,2600.4,2599.2,1.0832795]
[1645394286416,0.00678566,2600.3,2599.2,1.0832795]
[1645394287016,1.19121972,2600.0,2599.2,1.0832795]
[1645394287217,0.00678566,2599.9,2599.2,1.0832795]
[1645394287619,0.00678566,2599.9,2599.4,0.99820815]
[1645394287818,1.19121972,2600.0,2599.4,0.99820815]
[1645394289675,0.00678566,2600.3,2599.4,1.93928963]
[1645394289881,0.00678566,2600.3,2599.6,1.96026815]
[1645394290078,11.1752,2600.8,2599.8,0.99820815]
[1645394290079,0.00678566,2600.6,2599.8,0.99820815]
[1645394290381,0.00678566,2600.6,2600.0,0.99820815]
[1645394290678,0.00678566,2600.6,2600.2,0.99820815]
[1645394290874,1.12327366,2600.6,2600.2,0.99820815]
[1645394294719,0.00329846,2601.0,2600.2,0.99820815]
[1645394294917,0.00329846,2601.0,2600.4,0.99820815]
[1645394295518,0.19898566,2601.2,2600.4,0.99714802]
[1645394295716,0.00325221,2601.0,2600.4,0.99714802]
[1645394296762,0.19898566,2601.2,2600.4,0.99714802]
[1645394296964,0.00325221,2601.0,2600.4,0.99714802]
[1645394297563,1.08151831,2600.6,2600.4,0.99714802]
[1645394299671,1.08151831,2600.6,2600.4,0.98405967]
[1645394299872,0.01003595,2601.0,2600.6,1.74288445]
[1645394300073,0.00325029,2601.0,2600.8,0.98405967]
[1645394300317,0.00678566,2601.2,2600.7,0.98405967]
[1645394300717,0.00325306,2601.0,2600.9,0.98405967]
[1645394301519,0.00678566,2601.4,2600.9,0.98405967]
[1645394301720,0.00325354,2601.1,2600.9,0.98405967]
[1645394302122,1.13036044,2601.0,2600.9,0.98405967]
[1645394303722,0.00325354,2601.1,2600.9,0.98405967]
[1645394303923,0.00678566,2601.3,2600.9,0.98405967]
[1645394304168,5.0,2601.4,2600.9,0.98405967]
[1645394304366,0.00325335,2601.1,2600.9,0.98405967]
[1645394304972,0.00325335,2601.1,2600.9,0.98485967]
[1645394305167,0.00678566,2601.5,2601.0,0.98405967]
[1645394305370,5.0,2601.5,2601.0,0.98405967]
[1645394305567,0.00325326,2601.1,2601.0,0.98405967]
[1645394306468,0.96897649,2601.1,2601.0,0.98405967]
[1645394307066,0.00325326,2601.2,2601.0,0.98405967]
[1645394307666,0.00678566,2601.4,2601.0,0.98405967]
[1645394307915,0.00325327,2601.2,2601.0,0.98405967]
[1645394308115,0.95100261,2601.1,2601.0,0.98405967]
[1645394310118,0.95100261,2601.1,2601.0,0.98485967]
[1645394311115,0.00678566,2601.4,2601.0,0.98485967]
[1645394311316,5.0,2601.5,2601.0,0.98485967]
[1645394311577,0.00325328,2601.2,2601.0,0.98485967]
[1645394312467,1.15062911,2601.5,2601.0,0.98485967]
[1645394312468,0.00678566,2601.4,2601.0,0.98485967]
[1645394312673,0.00325328,2601.2,2601.0,0.98485967]
[1645394313666,0.00678566,2601.4,2601.0,0.98485967]
[1645394313867,0.00307527,2601.2,2601.0,0.98485967]
[1645394314668,0.8535404,2601.1,2601.0,0.98485967]
[1645394318413,1.44707521,2601.7,2601.0,0.98485967]
[1645394318414,1.43390203,2601.7,2601.0,0.98485967]
[1645394318814,0.00329258,2601.2,2601.0,0.98485967]
[1645394319767,0.00329257,2601.2,2601.0,0.98485967]
[1645394320372,0.00329257,2601.2,2601.1,0.98405967]
[1645394320570,0.01007823,2601.2,2601.1,0.98405967]
[1645394320768,0.00329257,2601.2,2601.1,0.98405967]
[1645394320970,0.00678566,2601.7,2601.1,0.98405967]
[1645394321170,0.00329257,2601.3,2601.1,0.98405967]
[1645394322072,0.00678566,2601.8,2601.3,0.98405967]
[1645394322274,1.30799434,2602.0,2601.3,1.94550967]
[1645394322275,0.0136075,2601.7,2601.3,1.94550967]
[1645394323313,0.00678566,2601.9,2601.3,1.94550967]
[1645394323520,0.00340236,2601.6,2601.3,1.94550967]
[1645394323718,0.00340236,2601.6,2601.5,0.98405967]
[1645394324315,0.00678566,2601.9,2601.5,0.98405967]
[1645394324519,1.07160174,2602.0,2601.5,0.98324749]
[1645394324520,1.05799434,2602.0,2601.5,0.98324749]
[1645394324720,0.00318377,2601.7,2601.5,0.98324749]
[1645394325519,0.00678566,2601.9,2601.5,0.98324749]
[1645394325716,1.05799434,2602.0,2601.5,0.98324749]
[1645394325917,0.00312231,2601.7,2601.5,0.98324749]
[1645394326762,0.00678566,2601.9,2601.5,1.94468429]
[1645394326961,1.05799434,2602.0,2601.5,1.94468429]
[1645394327163,0.00312231,2601.7,2601.5,0.98324749]
[1645394327964,0.00678566,2601.9,2601.5,0.98324749]
[1645394328167,1.05799434,2602.0,2601.5,0.98324749]
[1645394328363,0.00334213,2601.7,2601.5,0.98324749]
[1645394329263,0.00678566,2601.9,2601.5,0.98324749]
[1645394329566,1.05799434,2602.0,2601.5,0.98324749]
[1645394329567,0.00334213,2601.7,2601.5,0.98324749]
[1645394330414,0.84257117,2601.6,2601.5,0.98324749]
[1645394330612,0.84257117,2601.6,2601.5,0.98404749]
[1645394330822,5.79257117,2601.6,2601.5,0.98404749]
[1645394331615,5.79257117,2601.6,2601.5,0.82622187]
[1645394333617,7.21968754,2601.6,2601.5,0.82622187]
[1645394333818,5.79257117,2601.6,2601.5,0.82622187]
[1645394334084,2.24644761,2601.6,2601.5,0.82622187]
[1645394334266,0.98457117,2601.6,2601.5,0.82622187]
[1645394334666,0.79257117,2601.6,2601.5,0.82622187]
[1645394337466,1.09257117,2601.6,2601.5,0.82622187]
[1645394337668,2.24644761,2601.6,2601.5,0.82542187]
[1645394337924,0.79257117,2601.6,2601.5,0.82542187]
[1645394339323,4.29257117,2601.6,2601.5,0.82542187]
[1645394339519,6.04644761,2601.6,2601.5,0.82542187]
[1645394339717,2.54644761,2601.6,2601.5,0.82542187]
[1645394339922,1.09257117,2601.6,2601.5,0.82542187]
[1645394340118,2.54734057,2601.6,2601.5,0.82542187]
[1645394340318,2.73934057,2601.6,2601.5,5.82542187]
[1645394340520,2.43934057,2601.6,2601.5,5.82542187]
[1645394340720,2.24734057,2601.6,2601.5,5.82542187]
[1645394341119,0.79257117,2601.6,2601.5,5.82542187]
[1645394341765,7.2477458,2601.6,2601.5,5.82542187]
[1645394341965,6.64757117,2601.6,2601.5,5.82542187]
[1645394342364,1.83957117,2601.6,2601.5,5.82542187]
[1645394342565,1.92788833,2601.8,2601.5,5.82542187]
[1645394342768,0.00329614,2601.7,2601.5,5.82542187]
[1645394343566,1.45530653,2601.7,2601.5,5.82542187]
[1645394343971,0.88043712,2601.6,2601.5,5.82542187]
[1645394344965,2.33574365,2601.6,2601.5,5.82542187]
[1645394345816,1.45530653,2601.6,2601.5,5.82542187]
[1645394346020,0.00678566,2601.9,2601.5,5.82542187]
[1645394346317,0.00328828,2601.7,2601.5,5.82542187]
[1645394346520,0.00328828,2601.7,2601.6,5.82542187]
[1645394347420,0.00328827,2601.8,2601.6,5.82542187]
[1645394347616,1.4585948,2601.8,2601.6,5.82542187]
[1645394347816,1.45530653,2601.7,2601.6,5.82542187]
[1645394348017,1.4585948,2601.8,2601.6,5.82542187]
[1645394348216,1.45530653,2601.7,2601.6,5.82542187]
[1645394348420,4.45456699,2601.9,2601.6,5.82542187]
[1645394348421,6.58124098,2601.9,2601.6,4.9018551]
[1645394348618,1.4566633,2601.7,2601.6,4.9018551]
[1645394348816,0.00328879,2601.8,2601.6,4.9018551]
[1645394349087,1.11014046,2601.8,2601.6,4.9018551]
[1645394350967,1.11014046,2601.8,2601.6,4.9026551]
[1645394352471,1.10858429,2601.8,2601.6,4.9026551]
[1645394353827,0.3,2601.7,2601.6,4.9026551]
[1645394354025,0.1921,2602.0,2601.9,2.63636236]
[1645394354230,1.01697448,2602.1,2601.9,2.63636236]
[1645394355222,1.31697448,2602.1,2601.9,2.63636236]
[1645394355623,1.01697448,2602.1,2601.9,2.63636236]
[1645394357071,1.02030551,2602.1,2601.9,2.63636236]
[1645394357876,1.32030551,2602.1,2601.9,2.63636236]
[1645394358073,1.26697448,2602.1,2601.9,2.63636236]
[1645394358273,1.46253039,2602.1,2601.9,2.63636236]
[1645394358472,0.555,2602.0,2601.9,2.63636236]
[1645394358773,5.555,2602.0,2601.9,2.63636236]
[1645394359574,0.555,2602.0,2601.9,2.63636236]
[1645394360420,1.01697448,2602.1,2601.9,2.63636236]
[1645394360618,1.31697448,2602.1,2601.9,2.63636236]
[1645394360818,1.02053039,2602.1,2601.9,2.63636236]
[1645394361221,1.02053039,2602.1,2601.9,2.63716236]
[1645394361619,0.96697448,2602.1,2601.9,2.63716236]
[1645394361918,0.97053039,2602.1,2601.9,2.63716236]
[1645394362120,1.4562251,2602.0,2601.9,2.63716236]
[1645394364086,0.96697448,2602.1,2601.9,2.63716236]
[1645394364270,1.27053039,2602.1,2601.9,2.63716236]
[1645394364971,3.19841872,2602.1,2601.9,2.29383374]
[1645394365174,3.38686281,2602.1,2601.9,2.29383374]
[1645394365577,2.72400179,2602.1,2601.9,2.29383374]
[1645394365773,2.7275577,2602.1,2601.9,2.29383374]
[1645394366375,2.72400179,2602.1,2601.9,2.29383374]
[1645394366572,1.45702731,2602.0,2601.9,2.29383374]
[1645394366975,0.00350585,2602.1,2601.9,2.29383374]
[1645394367374,0.00350585,2602.1,2601.9,2.29303374]
[1645394367575,1.75702731,2602.3,2601.9,2.29303374]
[1645394367819,0.00350585,2602.1,2601.9,2.29303374]
[1645394368820,1.45702731,2602.2,2601.9,2.29303374]
[1645394369020,0.00350585,2602.1,2601.9,2.29303374]
[1645394370126,1.45702731,2602.2,2601.9,2.29303374]
[1645394370320,0.00350585,2602.1,2601.9,2.29303374]
[1645394371323,1.45702731,2602.2,2601.9,2.29303374]
[1645394371580,0.00351686,2602.1,2601.9,2.29303374]
[1645394372373,2.39552568,2602.3,2601.9,2.29303374]
[1645394372769,0.00351686,2602.1,2601.9,2.29303374]
[1645394373570,2.69552568,2602.3,2601.9,2.29303374]
[1645394373973,0.00351686,2602.1,2601.9,2.29303374]
[1645394374772,0.30666698,2602.3,2601.9,2.29303374]
[1645394374977,0.00666698,2602.3,2601.9,2.29303374]
[1645394375170,1.75702731,2602.4,2601.9,2.29303374]
[1645394375171,0.00351444,2602.1,2601.9,2.29303374]
[1645394376023,0.98230496,2602.3,2601.9,2.29303374]
[1645394376522,0.00351444,2602.1,2601.9,2.29303374]
[1645394377327,0.98230496,2602.3,2601.9,2.29303374]
[1645394377527,0.00351444,2602.1,2601.9,2.29303374]
[1645394378425,1.64902731,2602.2,2601.9,2.29303374]
[1645394378625,0.00351497,2602.1,2601.9,2.29303374]
[1645394379696,1.94902731,2602.2,2601.9,2.29303374]
[1645394379897,0.00351497,2602.1,2601.9,2.29303374]
[1645394380898,1.75702731,2602.2,2601.9,2.29303374]
[1645394381100,0.00351497,2602.1,2601.9,2.29303374]
[1645394382105,1.94902731,2602.2,2601.9,2.29303374]
[1645394382303,0.00355404,2602.1,2601.9,2.29303374]
[1645394383319,1.94902731,2602.2,2601.9,2.29303374]
[1645394383623,2.01558135,2602.1,2601.9,2.29303374]
[1645394383824,6.75702731,2602.0,2601.9,2.29303374]
[1645394384222,1.75702731,2602.0,2601.9,2.29303374]
[1645394385225,2.31202731,2602.0,2601.9,2.29303374]
[1645394385420,2.50402731,2602.0,2601.9,2.29303374]
[1645394386023,6.047,2602.0,2601.9,2.29303374]
[1645394386220,6.56943,2602.0,2601.9,2.0092629]
[1645394386420,1.56943,2602.0,2601.9,2.0092629]
[1645394387070,1.51943,2602.0,2601.9,2.0092629]
[1645394387876,1.32743,2602.0,2601.9,2.0092629]
[1645394388272,1.32743,2602.0,2601.9,1.63814162]
[1645394391227,6.32743,2602.0,2601.9,1.63814162]
[1645394395979,6.32743,2602.0,2601.9,1.58814162]
[1645394397584,9.55531833,2602.0,2601.9,1.58814162]
[1645394397826,8.57102775,2602.0,2601.9,1.58814162]
[1645394399728,6.62743,2602.0,2601.9,1.58814162]
[1645394400129,1.62743,2602.0,2601.9,0.25961003]
[1645394400329,8.57102775,2602.0,2601.9,0.25961003]
[1645394400531,1.62743,2602.0,2601.9,0.25961003]
[1645394400733,6.62743,2602.0,2601.9,0.25961003]
[1645394401131,6.62743,2602.0,2601.9,0.22833602]
[1645394401330,7.63325498,2601.9,2601.5,0.2008]
[1645394401573,1.45818322,2601.8,2601.5,0.2008]
[1645394401770,0.3,2601.7,2601.5,0.2008]
[1645394402371,0.3,2601.7,2601.5,0.15173963]
[1645394402572,0.28709854,2601.6,2601.5,0.15173963]
[1645394408325,0.28709854,2601.6,2601.5,1.78519888]
[1645394408550,0.28709854,2601.6,2601.5,5.28519888]
[1645394409189,1.36807218,2601.6,2601.5,5.28519888]
[1645394409984,1.36807218,2601.6,2601.5,1.78519888]
[1645394410186,1.36807218,2601.6,2601.5,2.79418826]
[1645394411489,1.36807218,2601.6,2601.5,2.79338826]
[1645394411786,1.36807218,2601.6,2601.5,2.79337491]
[1645394413629,1.36807218,2601.6,2601.5,2.54337491]
[1645394413929,1.31807218,2601.6,2601.5,2.54337491]
[1645394417777,0.00355547,2602.0,2601.6,18.5]
[1645394417978,0.00355547,2602.0,2601.7,1.6334459]
[1645394418174,0.04413318,2602.2,2602.1,1.08942863]